Workbook

Sheet Prestaciones 021 (hidden)
A2: NÓMINA ADICIONAL PARA PAGO DE PRESTACIONES
A3: RENGLÓN 022 "PERSONAL POR CONTRATO"
A8: PAGO DE PRESTACIONES
A9: AGUINALDO, BONO VACACIONAL Y BONO 14
A10: No. | B10: Empleado | C10: Puesto | E10: Contrato | F10: Fecha de Ingreso | Q10: Días Laborados en el Año | S10: RENGLÓN 022 | T10: RENGLÓN 026 | U10: RENGLON 27 | V10: Total Devengado Mensual | W10: Renglón 071 | X10: Renglón 073 | Y10: Renglón 072 | AA10: Líquido
S12: Sueldo Mensual | T12: Bono Profesional | U12: Bono 66-2000 | W12: Aguinaldo | X12: Bono Vacacional | Y12: Salarios Devengados | Z12: Bono 14
A14: 1 | B14: Heber Amilcar Barrios de León | C14: Encargado de Inventarios | E14: 10-2016-022-AMSA | F14: 2017-06-13 | I14: =(200/365)*(26+31+30+31+30+31+31+30+31+30+31) -> 181.9178082 | J14: =#REF!+I14 ->  | Q14: 382 | S14: 12000 | T14: 375 | U14: 250 | V14: =SUM(S14:U14) -> 12625 | W14: =12625*352/365 -> 12175.34247 | X14: =382/365*200 -> 209.3150685 | Y14: =(12625*1)+(12625/31*30) -> 24842.74194 | Z14: =Y14/12 -> 2070.228495 | AA14: =W14+X14+Z14 -> 14454.88603
A15: 2 | B15: Edgar Eduardo Pérez Cabrera | C15: Encargado de Inventarios | E15: 08-2017-021-AMSA | F15: 2017-01-01 | I15: =(200/365)*(26+31+30+31+30+31+31+30+31+30+31) -> 181.9178082 | J15: =#REF!+I15 ->  | Q15: 58 | S15: 3000 | T15: 1500 | U15: 250 | V15: =SUM(S15:U15) -> 4750 | W15: =12625*352/365 -> 12175.34247 | X15: =382/365*200 -> 209.3150685 | Y15: =(12625*1)+(12625/31*30) -> 24842.74194 | Z15: =Y15/12 -> 2070.228495 | AA15: =W15+X15+Z15 -> 14454.88603
E16: Totales | S16: =SUM(S14:S14) -> 12000 | T16: 375 | U16: 250 | V16: 12625 | W16: =SUM(W14) -> 12175.34247 | X16: =SUM(X14) -> 209.3150685 | Y16: =SUM(Y14) -> 24842.74194 | Z16: =SUM(Z14) -> 2070.228495 | AA16: =SUM(AA14:AA14) -> 14454.88603
G17: =SUM(G16:G16) -> 0 | H17: =SUM(#REF!) ->  | I17: =SUM(I14:I16) -> 363.8356164 | J17: =SUM(J14:J16) -> 
A18: Al señor Brian Antonio Archila Koppler se le esta efectuando el pago de prestaciones laborales hasta el día 28 de febrero de 2017, según Acuerdo número RH-047-2016 de fecha 31 de octubre de 2016.
A30: Elaboró | E30: Revisó: | W30: Vo.Bo.
B31: Yeimy Daleicy Rodriguez González | F31: Víctor Aníbal López Aquino | X31: Ing. Oscar Amed Juárez Sosa
B32: Encargada de Nómina | F32: Jefe Administrativo Financiero | X32: Director Ejecutivo
B33: AMSA | F33: AMSA | X33: AMSA
AA39: 1/1

Sheet 011-022
A4: AUTORIDAD PARA EL MANEJO SUSTENTABLE DE LA CUENCA Y DEL LAGO DE AMATITLÁN NÓMINA DE SUELDOS CORRESPONDIENTES AL MES DE MAYO 2021
A6: RENGLÓN 011 PERSONAL PERMANENTE
A7: No. | B7: Renglón | C7: Puesto Nominal | D7: Puesto Funcional | E7: Código Puesto | F7: CÓDIGO DE EMPLEADO | G7: fecha de ingreso | H7: NOMBRE | J7: Contrato | K7: Fecha de Ingreso | L7: NIT | M7: IGSS | O7: CÉDULA | P7: EXTENDIDA EN | Q7: FECHA DE NACIMIENTO | R7: DIRECCIÓN | S7: TELÉFONO | T7: CORREO ELECTRÓNICO | U7: ESTADO CIVIL | V7: PROFESIÓN | W7: OTROS ESTUDIOS | X7: COLEGIADO ACTIVO | Y7: CUENTA BANCARIA | Z7: Devengado Mensual | AD7: TOTAL DEVENGADO MENSUAL
Z8: Renglón 022 | AA8: Renglón 026 | AB8: Renglón 027 | AC8: Renglón 063
N9: DPI | Z9: Sueldo Mensual | AA9: Bono Profesional | AB9: Bono 66-2000 | AC9: Gastos de Represent.
AB10: 27
A11: 1 | B11: 011 | C11: Director Ejecutivo | D11: Director Ejecutivo | E11: 351677 | H11: Edgar Rolando Zamora Ruíz | J11: 05-2019-022-AMSA | K11: 2019-05-28 | Z11: 17500 | AA11: 0 | AB11: 250 | AC11: 12000 | AD11: =ROUND(SUM(Z11:AC11),2) -> 29750
Z12: 17500 | AA12: 0 | AB12: 250 | AC12: 12000 | AD12: 29750

Sheet Hoja1
A6: 3 | B6: 022 | D6: Director Ejecutivo III | E6: Jefe Ordenamiento Territorial | F6: 351670 | J6: Julio Christian Montenegro Guzman | L6: 11-2019-022-AMSA | M6: 2019-11-18 | AB6: =13500/31*17 -> 7403.225806 | AC6: =375/31*17 -> 205.6451613 | AD6: =250/31*17 -> 137.0967742 | AE6: 0 | AF6: =ROUND(SUM(AB6:AE6),2) -> 7745.97 | AG6: =ROUND(SUM(AB6:AC6)*15%,2) -> 1141.33 | AH6: =ROUND(SUM(AB6+AC6)*1.344%,2) -> 102.26 | AI6: =ROUND(SUM(AB6+AC6)*3%,2) -> 228.27 | AJ6: 381.38 | AN6: =SUM(AG6:AM6) -> 1853.24 | AO6: =AF6-AN6 -> 5892.73 | AP6: 9901370183
A10: 1 | B10: 022 | D10: Subdirector Ejecutivo II | E10: Auditor Interno | F10: 308379 | J10: Edgar René Torres | L10: 04-2020-022-AMSA | M10: 2020-01-20 | AB10: =ROUND(10000*12/31+10000,2) -> 13870.97 | AC10: =ROUND(375*12/31+375,2) -> 520.16 | AD10: =ROUND(250*12/31+250,2) -> 346.77 | AE10: 0 | AF10: =ROUND(SUM(AB10:AE10),2) -> 14737.9 | AG10: =ROUND(SUM(AB10:AC10)*15%,2) -> 2158.67 | AH10: =ROUND(SUM(AB10+AC10)*1.344%,2) -> 193.42 | AI10: =ROUND(SUM(AB10+AC10)*3%,2) -> 431.73 | AJ10: 215.51 | AN10: =SUM(AG10:AM10) -> 2999.33 | AO10: =AF10-AN10 -> 11738.57 | AP10: 9901350757
A11: 8 | B11: 022 | D11: Director Ejecutivo III | E11: Jefe Ordenamiento Territorial | F11: 351670 | J11: Brayan Onasis Estevez Ruiz | L11: 03-2020-022-AMSA | M11: 2020-01-20 | AB11: =ROUND(13500*12/31+13500,2) -> 18725.81 | AC11: =ROUND(375*12/31+375,2) -> 520.16 | AD11: =ROUND(250*12/31+250,2) -> 346.77 | AE11: 0 | AF11: =ROUND(SUM(AB11:AE11),2) -> 19592.74 | AG11: =ROUND(SUM(AB11:AC11)*15%,2) -> 2886.9 | AH11: =ROUND(SUM(AB11+AC11)*1.344%,2) -> 258.67 | AI11: =ROUND(SUM(AB11+AC11)*3%,2) -> 577.38 | AJ11: 351.68 | AN11: 3065.36 | AO11: 11059.64 | AP11: 9901370183
A12: 9 | B12: 022 | D12: Director Ejecutivo II | E12: Jefa de Relaciones Interinstitucionales | F12: 351672 | J12: Maria Alejandra Guzman García | L12: 02-2020-022-AMSA | M12: 2020-01-20 | AB12: =ROUND(12000*12/31+12000,2) -> 16645.16 | AC12: 0 | AD12: =ROUND(250*12/31+250,2) -> 346.77 | AE12: 0 | AF12: =ROUND(SUM(AB12:AE12),2) -> 16991.93 | AG12: =ROUND(SUM(AB12:AC12)*15%,2) -> 2496.77 | AH12: =ROUND(SUM(AB12+AC12)*1.344%,2) -> 223.71 | AI12: =ROUND(SUM(AB12+AC12)*3%,2) -> 499.35 | AJ12: 278.73 | AN12: 2586.3 | AO12: 9663.7 | AP12: 990054468
A13: 10 | B13: 022 | D13: Director Ejecutivo ll | E13: Jefe de Evaluacion y Seguimiento | F13: 351678 | J13: Harold Alexander Cruz Juarez | L13: 01-2020-022-AMSA | M13: 2020-01-20 | AB13: =ROUND(12000*12/31+12000,2) -> 16645.16 | AC13: =ROUND(375*12/31+375,2) -> 520.16 | AD13: =ROUND(250*12/31+250,2) -> 346.77 | AE13: 0 | AF13: =ROUND(SUM(AB13:AE13),2) -> 17512.09 | AG13: =ROUND(SUM(AB13:AC13)*15%,2) -> 2574.8 | AH13: =ROUND(SUM(AB13+AC13)*1.344%,2) -> 230.7 | AI13: =ROUND(SUM(AB13+AC13)*3%,2) -> 514.96 | AJ13: 293.32 | AN13: 2717.03 | AO13: 9907.97
F15: 12000 | G15: =F15/2 -> 6000
B20: 4 | C20: 990091724 | D20: 775400 | E20: 46905030 | F20: Loida Rebeca Vásquez Zuleta | G20: Encargada de Nomina | H20: 04-2020-021-AMSA | I20: 2020-01-02 | J20: 2015-04-13 | K20: 5300 | L20: 0 | M20: 2000 | N20: 250 | O20: =K20+M20+N20 -> 7550 | P20: =ROUND(SUM(K20:M20)*13%,2) -> 949 | Q20: =ROUND(SUM(K20:M20)*1.344%,2) -> 98.11 | R20: =ROUND(SUM(K20:M20)*3%,2) -> 219 | T20: 118.24 | U20: 0 | V20: =SUM(P20:U20) -> 1384.35 | W20: =O20-V20 -> 6165.65

Sheet SP 031A (hidden)
A2: AUTORIDAD PARA EL MANEJO SUSTENTABLE DE LA CUENCA Y DEL LAGO DE AMATITLÁN.
B3: PRESIDENCIA DE LA REPÚBLICA.
A5: =#REF! -> 
A6: =#REF! -> 
B8: GUATEMALA, | F8: =TODAY() -> 2021-06-11 | O8: CANTIDAD: | S8: =+#REF! -> 
B10: UNIDAD SOLICITANTE: | H10: RECURSOS HUMANOS
B12: CANTIDAD: | E12: =PesosMN(S8) -> 
B13: NOMINA: | H13: =+A6 ->  | Q13: VENCE:
B15: CUR | D15: x | F15: CHEQUE AMSA | L15: CAJA CHICA
B17: A NOMBRE DE: | F17: AMSA
B19: OBSERVACIONES: | G19: =#REF! -> 
G20: 031 "JORNALES"
A29: AUTORIDAD PARA EL MANEJO SUSTENTABLE DE LA CUENCA Y DEL LAGO DE AMATITLÁN.
B30: PRESIDENCIA DE LA REPÚBLICA.
A32: ='[1]031'!E42 -> 
A33: =+#REF! -> 
B35: GUATEMALA, | F35: =F8 -> 2021-06-11 | O35: CANTIDAD: | S35: =+#REF! -> 
B37: UNIDAD SOLICITANTE: | H37: RECURSOS HUMANOS
B39: CANTIDAD: | E39: =PesosMN(S35) -> 
B40: NOMINA: | H40: =+A33 ->  | Q40: VENCE:
B42: CUR | D42: x | F42: CHEQUE AMSA | L42: CAJA CHICA
B44: A NOMBRE DE: | F44: AMSA
B46: OBSERVACIONES: | G46: =G19 -> 
G47: 031 "JORNALES" DE LA DIVISIÓN DE DESECHOS SÓLIDOS.
A54: AUTORIDAD PARA EL MANEJO SUSTENTABLE DE LA CUENCA Y DEL LAGO DE AMATITLÁN.
B55: PRESIDENCIA DE LA REPÚBLICA.
A57: ='[1]031'!E78 -> 
A58: =+#REF! -> 
B60: GUATEMALA, | F60: =F8 -> 2021-06-11 | O60: CANTIDAD: | S60: =+#REF! -> 
B62: UNIDAD SOLICITANTE: | H62: RECURSOS HUMANOS
B64: CANTIDAD: | E64: =PesosMN(S60) -> 
B65: NOMINA: | H65: =A58 ->  | Q65: VENCE:
B67: CUR | D67: x | F67: CHEQUE AMSA | L67: CAJA CHICA
B69: A NOMBRE DE: | F69: AMSA
B71: OBSERVACIONES: | G71: =G19 -> 
G72: 031 "JORNALES" DE LA DIVISIÓN DE DESECHOS LÍQUIDOS.
A81: AUTORIDAD PARA EL MANEJO SUSTENTABLE DE LA CUENCA Y DEL LAGO DE AMATITLÁN.
B82: PRESIDENCIA DE LA REPÚBLICA.
A84: ='[1]031'!E116 -> 
A85: =+#REF! -> 
B87: GUATEMALA, | F87: =F8 -> 2021-06-11 | O87: CANTIDAD: | S87: =+#REF! -> 
B89: UNIDAD SOLICITANTE: | H89: RECURSOS HUMANOS
B91: CANTIDAD: | E91: =PesosMN(S87) -> 
B92: NOMINA: | H92: =A85 ->  | Q92: VENCE:
B94: CUR | D94: x | F94: CHEQUE AMSA | L94: CAJA CHICA
B96: A NOMBRE DE: | F96: AMSA
B98: OBSERVACIONES: | G98: =G19 -> 
G99: 031 "JORNALES" DE LA DIVISIÓN DE MANTENIMIENTO Y LIMPIEZA DEL LAGO.
A109: AUTORIDAD PARA EL MANEJO SUSTENTABLE DE LA CUENCA Y DEL LAGO DE AMATITLÁN.
B110: PRESIDENCIA DE LA REPÚBLICA.
A112: ='[1]031'!E161 -> 
A113: =+#REF! -> 
B115: GUATEMALA, | F115: =F8 -> 2021-06-11 | O115: CANTIDAD: | S115: =+#REF! -> 
B117: UNIDAD SOLICITANTE: | H117: RECURSOS HUMANOS
B119: CANTIDAD: | E119: =PesosMN(S115) -> 
B120: NOMINA No. | I120: =A113 ->  | Q120: VENCE:
B122: CUR | D122: x | F122: CHEQUE AMSA | L122: CAJA CHICA
B124: A NOMBRE DE: | F124: AMSA
B126: OBSERVACIONES: | G126: =G19 -> 
G127: 031 "JORNALES" DE LA DIVISIÓN FORESTAL.

Sheet B 031 (hidden)
A1: GOBIERNO DE LA REPÚBLICA DE GUATEMALA
A2: AUTORIDAD PARA EL MANEJO SUSTENTABLE DE LA CUENCA Y DEL LAGO DE AMATITLÁN
A5: Boleta de Liquidación Mensual Renglón 031 "Jornales" Correspondiente al mes de septiembre 2014
A6: =#REF! -> 
A8: Empleado: | C8: =#REF! ->  | K8: Certificación No. | N8: =#REF! ->  | P8: Fecha: | R8: 2014-08-31
A9: Contrato: | C9: =#REF! ->  | F9: Puesto Funcional: | I9: =#REF! ->  | M9: Titulo Jornal: | P9: =#REF! -> 
A10: Cuenta / Banco: | D10: =#REF! ->  | F10: Banco de Desarrollo Rural, S.A. | K10: Jornal Diario: | N10: =#REF! ->  | P10: Días Trabajados: | S10: =#REF! -> 
M12: Ingresos | Q12: Deducciones
B14: 031 | C14: DEVENGADO | M14: =#REF! -> 
B15: 033 | C15: BONO ACUERDO GUBERNATIVO 66-2000 | M15: =#REF! -> 
B16: 201 | C16: I.G.S.S | Q16: =#REF! -> 
B17: 118 | C17: MONTEPÍO | Q17: 0
B18: 211 | C18: RETENCIONES JUDICIALES | Q18: =#REF! -> 
K19: Total : | M19: =SUM(M14:O18) ->  | Q19: =SUM(Q16:S18) -> 
K20: Liquido : | M20: =M19-Q19 -> 
A29: María José Ceballos López | M29: =C8 -> 
A30: Encargada de Nómina | M30: =P9 -> 
A31: AMSA | M31: AMSA
A40: GOBIERNO DE LA REPÚBLICA DE GUATEMALA
A41: AUTORIDAD PARA EL MANEJO SUSTENTABLE DE LA CUENCA Y DEL LAGO DE AMATITLÁN
A44: =A5 -> Boleta de Liquidación Mensual Renglón 031 "Jornales" Correspondiente al mes de septiembre 2014
A45: =A6 -> 
A47: Empleado: | C47: =C8 ->  | K47: Certificación No. | N47: =N8 ->  | P47: Fecha: | R47: =R8 -> 2014-08-31
A48: Contrato: | C48: =C9 ->  | F48: Puesto Funcional: | I48: =I9 ->  | M48: Titulo Jornal: | P48: =P9 -> 
A49: Cuenta / Banco: | D49: =D10 ->  | F49: Banco de Desarrollo Rural, S.A. | K49: Jornal Diario: | N49: =N10 ->  | P49: Días Trabajados: | S49: =S10 -> 
M51: Ingresos | Q51: Deducciones
B53: 031 | C53: DEVENGADO | M53: =M14 -> 
B54: 033 | C54: BONO ACUERDO GUBERNATIVO 66-2000 | M54: =M15 -> 
B55: 201 | C55: I.G.S.S | Q55: =Q16 -> 
B56: 118 | C56: MONTEPÍO | Q56: =Q17 -> 0
B57: 211 | C57: RETENCIONES JUDICIALES | Q57: =Q18 -> 
K58: Total : | M58: =SUM(M53:O57) ->  | Q58: =SUM(Q55:S57) -> 
K59: Liquido : | M59: =M58-Q58 -> 
A68: =A29 -> María José Ceballos López | M68: =C47 -> 
A69: =A30 -> Encargada de Nómina | M69: =P48 -> 
A70: =A31 -> AMSA | M70: AMSA
A72: GOBIERNO DE LA REPÚBLICA DE GUATEMALA
A73: AUTORIDAD PARA EL MANEJO SUSTENTABLE DE LA CUENCA Y DEL LAGO DE AMATITLÁN
A76: =A5 -> Boleta de Liquidación Mensual Renglón 031 "Jornales" Correspondiente al mes de septiembre 2014
A77: =A6 -> 
A79: Empleado: | C79: =#REF! ->  | K79: Certificación No. | N79: =N8+1 ->  | P79: Fecha: | R79: =R8 -> 2014-08-31
A80: Contrato: | C80: =#REF! ->  | F80: Puesto Funcional: | I80: =#REF! ->  | M80: Titulo Jornal: | P80: =#REF! -> 
A81: Cuenta / Banco: | D81: =#REF! ->  | F81: Banco de Desarrollo Rural, S.A. | K81: Jornal Diario: | N81: =#REF! ->  | P81: Días Trabajados: | S81: =#REF! -> 
M83: Ingresos | Q83: Deducciones
B85: 031 | C85: DEVENGADO | M85: =#REF! -> 
B86: 033 | C86: BONO ACUERDO GUBERNATIVO 66-2000 | M86: =#REF! -> 
B87: 201 | C87: I.G.S.S | Q87: =#REF! -> 
B88: 118 | C88: MONTEPÍO | Q88: 0
B89: 211 | C89: RETENCIONES JUDICIALES | Q89: =#REF! -> 
K90: Total : | M90: =SUM(M85:O89) ->  | Q90: =SUM(Q87:S89) -> 
K91: Liquido : | M91: =M90-Q90 -> 
A100: María José Ceballos López | M100: =C79 -> 
A101: Encargada de Nómina | M101: =P80 -> 
A102: AMSA | M102: AMSA
A111: GOBIERNO DE LA REPÚBLICA DE GUATEMALA
A112: AUTORIDAD PARA EL MANEJO SUSTENTABLE DE LA CUENCA Y DEL LAGO DE AMATITLÁN
A115: =A76 -> Boleta de Liquidación Mensual Renglón 031 "Jornales" Correspondiente al mes de septiembre 2014
A116: =A77 -> 
A118: Empleado: | C118: =C79 ->  | K118: Certificación No. | N118: =N79 ->  | P118: Fecha: | R118: =R79 -> 2014-08-31
A119: Contrato: | C119: =C80 ->  | F119: Puesto Funcional: | I119: =I80 ->  | M119: Titulo Jornal: | P119: =P80 -> 
A120: Cuenta / Banco: | D120: =D81 ->  | F120: Banco de Desarrollo Rural, S.A. | K120: Jornal Diario: | N120: =N81 ->  | P120: Días Trabajados: | S120: =S81 -> 
M122: Ingresos | Q122: Deducciones
B124: 031 | C124: DEVENGADO | M124: =M85 -> 
B125: 033 | C125: BONO ACUERDO GUBERNATIVO 66-2000 | M125: =M86 -> 
B126: 201 | C126: I.G.S.S | Q126: =Q87 -> 
B127: 118 | C127: MONTEPÍO | Q127: =Q88 -> 0
B128: 211 | C128: RETENCIONES JUDICIALES | Q128: =Q89 -> 
K129: Total : | M129: =SUM(M124:O128) ->  | Q129: =SUM(Q126:S128) -> 
K130: Liquido : | M130: =M129-Q129 -> 
A139: =A100 -> María José Ceballos López | M139: =C118 -> 
A140: =A101 -> Encargada de Nómina | M140: =P119 -> 
A141: =A102 -> AMSA | M141: AMSA
A143: GOBIERNO DE LA REPÚBLICA DE GUATEMALA
A144: AUTORIDAD PARA EL MANEJO SUSTENTABLE DE LA CUENCA Y DEL LAGO DE AMATITLÁN
A147: =A76 -> Boleta de Liquidación Mensual Renglón 031 "Jornales" Correspondiente al mes de septiembre 2014
A148: =A77 -> 
A150: Empleado: | C150: =#REF! ->  | K150: Certificación No. | N150: =N79+1 ->  | P150: Fecha: | R150: =R8 -> 2014-08-31
A151: Contrato: | C151: =#REF! ->  | F151: Puesto Funcional: | I151: =#REF! ->  | M151: Titulo Jornal: | P151: =#REF! -> 
A152: Cuenta / Banco: | D152: =#REF! ->  | F152: Banco de Desarrollo Rural, S.A. | K152: Jornal Diario: | N152: =#REF! ->  | P152: Días Trabajados: | S152: =#REF! -> 
M154: Ingresos | Q154: Deducciones
B156: 031 | C156: DEVENGADO | M156: =#REF! -> 
B157: 033 | C157: BONO ACUERDO GUBERNATIVO 66-2000 | M157: =#REF! -> 
B158: 201 | C158: I.G.S.S | Q158: =#REF! -> 
B159: 118 | C159: MONTEPÍO | Q159: 0
B160: 211 | C160: RETENCIONES JUDICIALES | Q160: =#REF! -> 
K161: Total : | M161: =SUM(M156:O160) ->  | Q161: =SUM(Q158:S160) -> 
K162: Liquido : | M162: =M161-Q161 -> 
A171: María José Ceballos López | M171: =C150 -> 
A172: Encargada de Nómina | M172: =P151 -> 
A173: AMSA | M173: AMSA
A182: GOBIERNO DE LA REPÚBLICA DE GUATEMALA
A183: AUTORIDAD PARA EL MANEJO SUSTENTABLE DE LA CUENCA Y DEL LAGO DE AMATITLÁN
A186: =A147 -> Boleta de Liquidación Mensual Renglón 031 "Jornales" Correspondiente al mes de septiembre 2014
A187: =A148 -> 
A189: Empleado: | C189: =C150 ->  | K189: Certificación No. | N189: =N150 ->  | P189: Fecha: | R189: =R150 -> 2014-08-31
A190: Contrato: | C190: =C151 ->  | F190: Puesto Funcional: | I190: =I151 ->  | M190: Titulo Jornal: | P190: =P151 -> 
A191: Cuenta / Banco: | D191: =D152 ->  | F191: Banco de Desarrollo Rural, S.A. | K191: Jornal Diario: | N191: =N152 ->  | P191: Días Trabajados: | S191: =S152 -> 
M193: Ingresos | Q193: Deducciones
B195: 031 | C195: DEVENGADO | M195: =M156 -> 
B196: 033 | C196: BONO ACUERDO GUBERNATIVO 66-2000 | M196: =M157 -> 
B197: 201 | C197: I.G.S.S | Q197: =Q158 -> 
B198: 118 | C198: MONTEPÍO | Q198: =Q159 -> 0
B199: 211 | C199: RETENCIONES JUDICIALES | Q199: =Q160 -> 
K200: Total : | M200: =SUM(M195:O199) ->  | Q200: =SUM(Q197:S199) -> 
K201: Liquido : | M201: =M200-Q200 -> 
A210: =A171 -> María José Ceballos López | M210: =C189 -> 
A211: =A172 -> Encargada de Nómina | M211: =P190 -> 
A212: =A173 -> AMSA | M212: AMSA
A214: GOBIERNO DE LA REPÚBLICA DE GUATEMALA
A215: AUTORIDAD PARA EL MANEJO SUSTENTABLE DE LA CUENCA Y DEL LAGO DE AMATITLÁN
A218: =A147 -> Boleta de Liquidación Mensual Renglón 031 "Jornales" Correspondiente al mes de septiembre 2014
A219: =A148 -> 
A221: Empleado: | C221: =#REF! ->  | K221: Certificación No. | N221: =N150+1 ->  | P221: Fecha: | R221: 2014-09-30
A222: Contrato: | C222: =#REF! ->  | F222: Puesto Funcional: | I222: =#REF! ->  | M222: Titulo Jornal: | P222: =#REF! -> 
A223: Cuenta / Banco: | D223: =#REF! ->  | F223: Banco de Desarrollo Rural, S.A. | K223: Jornal Diario: | N223: =#REF! ->  | P223: Días Trabajados: | S223: =#REF! -> 
M225: Ingresos | Q225: Deducciones
B227: 031 | C227: DEVENGADO | M227: =#REF! -> 
B228: 033 | C228: BONO ACUERDO GUBERNATIVO 66-2000 | M228: =#REF! -> 
B229: 201 | C229: I.G.S.S | Q229: =#REF! -> 
B230: 118 | C230: MONTEPÍO | Q230: 0
B231: 211 | C231: RETENCIONES JUDICIALES | Q231: =#REF! -> 
K232: Total : | M232: =SUM(M227:O231) ->  | Q232: =SUM(Q229:S231) -> 
K233: Liquido : | M233: =M232-Q232 -> 
A242: María José Ceballos López | M242: =C221 -> 
A243: Encargada de Nómina | M243: =P222 -> 
A244: AMSA | M244: AMSA
A253: GOBIERNO DE LA REPÚBLICA DE GUATEMALA
A254: AUTORIDAD PARA EL MANEJO SUSTENTABLE DE LA CUENCA Y DEL LAGO DE AMATITLÁN
A257: =A218 -> Boleta de Liquidación Mensual Renglón 031 "Jornales" Correspondiente al mes de septiembre 2014
A258: =A219 -> 
A260: Empleado: | C260: =C221 ->  | K260: Certificación No. | N260: =N221 ->  | P260: Fecha: | R260: =R221 -> 2014-09-30
A261: Contrato: | C261: =C222 ->  | F261: Puesto Funcional: | I261: =I222 ->  | M261: Titulo Jornal: | P261: =P222 -> 
A262: Cuenta / Banco: | D262: =D223 ->  | F262: Banco de Desarrollo Rural, S.A. | K262: Jornal Diario: | N262: =N223 ->  | P262: Días Trabajados: | S262: =S223 -> 
M264: Ingresos | Q264: Deducciones
B266: 031 | C266: DEVENGADO | M266: =M227 -> 
B267: 033 | C267: BONO ACUERDO GUBERNATIVO 66-2000 | M267: =M228 -> 
B268: 201 | C268: I.G.S.S | Q268: =Q229 -> 
B269: 118 | C269: MONTEPÍO | Q269: =Q230 -> 0
B270: 211 | C270: RETENCIONES JUDICIALES | Q270: =Q231 -> 
K271: Total : | M271: =SUM(M266:O270) ->  | Q271: =SUM(Q268:S270) -> 
K272: Liquido : | M272: =M271-Q271 -> 
A281: =A242 -> María José Ceballos López | M281: =C260 -> 
A282: =A243 -> Encargada de Nómina | M282: =P261 -> 
A283: =A244 -> AMSA | M283: AMSA
A285: GOBIERNO DE LA REPÚBLICA DE GUATEMALA
A286: AUTORIDAD PARA EL MANEJO SUSTENTABLE DE LA CUENCA Y DEL LAGO DE AMATITLÁN
A289: =A218 -> Boleta de Liquidación Mensual Renglón 031 "Jornales" Correspondiente al mes de septiembre 2014
A290: =A219 -> 
A292: Empleado: | C292: =#REF! ->  | K292: Certificación No. | N292: =N221+1 ->  | P292: Fecha: | R292: =R8 -> 2014-08-31
A293: Contrato: | C293: =#REF! ->  | F293: Puesto Funcional: | I293: =#REF! ->  | M293: Titulo Jornal: | P293: =#REF! -> 
A294: Cuenta / Banco: | D294: =#REF! ->  | F294: Banco de Desarrollo Rural, S.A. | K294: Jornal Diario: | N294: =#REF! ->  | P294: Días Trabajados: | S294: =#REF! -> 
M296: Ingresos | Q296: Deducciones
B298: 031 | C298: DEVENGADO | M298: =#REF! -> 
B299: 033 | C299: BONO ACUERDO GUBERNATIVO 66-2000 | M299: =#REF! -> 
B300: 201 | C300: I.G.S.S | Q300: =#REF! -> 
B301: 118 | C301: MONTEPÍO | Q301: 0
B302: 211 | C302: RETENCIONES JUDICIALES | Q302: =#REF! -> 
K303: Total : | M303: =SUM(M298:O302) ->  | Q303: =SUM(Q300:S302) -> 
K304: Liquido : | M304: =M303-Q303 -> 
A313: María José Ceballos López | M313: =C292 -> 
A314: Encargada de Nómina | M314: =P293 -> 
A315: AMSA | M315: AMSA
A324: GOBIERNO DE LA REPÚBLICA DE GUATEMALA
A325: AUTORIDAD PARA EL MANEJO SUSTENTABLE DE LA CUENCA Y DEL LAGO DE AMATITLÁN
A328: =A289 -> Boleta de Liquidación Mensual Renglón 031 "Jornales" Correspondiente al mes de septiembre 2014
A329: =A290 -> 
A331: Empleado: | C331: =C292 ->  | K331: Certificación No. | N331: =N292 ->  | P331: Fecha: | R331: =R292 -> 2014-08-31
A332: Contrato: | C332: =C293 ->  | F332: Puesto Funcional: | I332: =I293 ->  | M332: Titulo Jornal: | P332: =P293 -> 
A333: Cuenta / Banco: | D333: =D294 ->  | F333: Banco de Desarrollo Rural, S.A. | K333: Jornal Diario: | N333: =N294 ->  | P333: Días Trabajados: | S333: =S294 -> 
M335: Ingresos | Q335: Deducciones
B337: 031 | C337: DEVENGADO | M337: =M298 -> 
B338: 033 | C338: BONO ACUERDO GUBERNATIVO 66-2000 | M338: =M299 -> 
B339: 201 | C339: I.G.S.S | Q339: =Q300 -> 
B340: 118 | C340: MONTEPÍO | Q340: =Q301 -> 0
B341: 211 | C341: RETENCIONES JUDICIALES | Q341: =Q302 -> 
K342: Total : | M342: =SUM(M337:O341) ->  | Q342: =SUM(Q339:S341) -> 
K343: Liquido : | M343: =M342-Q342 -> 
A352: =A313 -> María José Ceballos López | M352: =C331 -> 
A353: =A314 -> Encargada de Nómina | M353: =P332 -> 
A354: =A315 -> AMSA | M354: AMSA
A356: GOBIERNO DE LA REPÚBLICA DE GUATEMALA
A357: AUTORIDAD PARA EL MANEJO SUSTENTABLE DE LA CUENCA Y DEL LAGO DE AMATITLÁN
A360: Boleta de Liquidación Mensual Renglón 031 "Jornales" Correspondiente al mes de Agosto 2015
A361: NÚMERO 45-2015
A363: Empleado: | C363: Yomara Ninett Escobar Calderón | K363: Certificación No. | N363: 7 | P363: Fecha: | R363: 2015-08-31
A364: Contrato: | C364: 11-2014-031-AMSA | F364: Puesto Funcional: | I364: =#REF! ->  | M364: Titulo Jornal: | P364: Peón
A365: Cuenta / Banco: | D365: 3164072096 | F365: Banco de Desarrollo Rural, S.A. | K365: Jornal Diario: | N365: 74.97 | P365: Días Trabajados: | S365: =#REF! -> 
M367: Ingresos | Q367: Deducciones
B369: 031 | C369: DEVENGADO | M369: =+N365*S365 -> 
B370: 033 | C370: BONO ACUERDO GUBERNATIVO 66-2000 | M370: =#REF! -> 
B371: 201 | C371: I.G.S.S | Q371: =ROUND(M369*4.83%,2) -> 
B372: 118 | C372: MONTEPÍO | Q372: 0
B373: 211 | C373: RETENCIONES JUDICIALES | Q373: =#REF! -> 
K374: Total : | M374: =SUM(M369:O373) ->  | Q374: =SUM(Q371:S373) -> 
K375: Liquido : | M375: =M374-Q374 -> 
A384: Jonnathan René Pernillo Salazar | M384: =C363 -> Yomara Ninett Escobar Calderón
A385: Encargado de Nómina | M385: =P364 -> Peón
A386: AMSA | M386: AMSA
A395: GOBIERNO DE LA REPÚBLICA DE GUATEMALA
A396: AUTORIDAD PARA EL MANEJO SUSTENTABLE DE LA CUENCA Y DEL LAGO DE AMATITLÁN
... 1676 more rows
